lending/lending_fUSD_20250808
["ID","MTS","AMOUNT","RATE_DAILY","PERIOD"]
[377920914,1754613187660,-1333.93,0.00023287,2]
[377920915,1754613187673,-694.8,0.00023287,2]
[377920916,1754613187682,-750.53,0.00023287,2]
[377920917,1754613187691,-631.92,0.00023287,2]
[377920918,1754613187700,-518.35,0.00023287,2]
[377920919,1754613187710,-1164.69,0.00023287,2]
[377920920,1754613187721,-2811.47,0.00023287,2]
[377920921,1754613187733,-465.25,0.00023287,2]
[377920922,1754613187743,-543.99,0.00023287,2]
[377920923,1754613187752,-1133.55,0.00023287,2]
[377920924,1754613187762,-680.98,0.00023287,2]
[377920925,1754613187771,-1818.01,0.00023287,2]
[377920926,1754613187781,-4407.12,0.00023287,2]
[377920927,1754613187791,-1288.12,0.00023287,2]
[377920928,1754613187801,-1275.65,0.00023287,2]
[377920929,1754613187810,-961.95,0.00023287,2]
[377920930,1754613187819,-1117.23,0.00023287,2]
[377920931,1754613187829,-1714.38,0.00023287,2]
[377920932,1754613187839,-453.21,0.00023287,2]
[377920933,1754613187849,-400.0,0.00023287,2]
[377920934,1754613187859,-879.97,0.00023287,2]
[377920935,1754613187870,-400.0,0.00023287,2]
[377920936,1754613187882,-633.58,0.00023287,2]
[377920937,1754613187892,-1383.67,0.00023287,2]
[377920938,1754613187902,-1989.79,0.00023287,2]
[377920939,1754613187912,-1604.94,0.00023287,2]
[377920940,1754613187923,-1105.6,0.00023287,2]
[377920941,1754613187933,-426.59,0.00023287,2]
[377920942,1754613187942,-400.0,0.00023287,2]
[377920943,1754613187952,-446.1,0.00023287,2]
[377920944,1754613187962,-1061.62,0.00023287,2]
[377920945,1754613187973,-2286.48,0.00023287,2]
[377920946,1754613187983,-1419.58,0.00023287,2]
[377920947,1754613187993,-608.07,0.00023287,2]
[377920948,1754613188003,-1349.34,0.00023287,2]
[377920949,1754613188013,-1214.9,0.00023287,2]
[377920950,1754613188023,-994.63,0.00023287,2]
[377920951,1754613188034,-2503.56,0.00023287,2]
[377920952,1754613188044,-668.68,0.00023287,2]
[377920953,1754613188054,-2034.76,0.00023287,2]
[377920954,1754613188063,-578.7,0.00023287,2]
[377920955,1754613188075,-1276.94,0.00023287,2]
[377920956,1754613188195,-400.0,0.00023287,2]
[377920957,1754613188206,-1646.26,0.00023287,2]
[377920958,1754613188216,-1889.62,0.00023287,2]
[377920959,1754613188225,-1501.0,0.00023287,2]
[377920960,1754613188235,-1528.92,0.00023287,2]
[377920961,1754613188245,-1025.64,0.00023287,2]
[377920962,1754613188255,-2128.65,0.00023287,2]
[377920963,1754613188264,-547.41,0.00023287,2]
[377920964,1754613188274,-1086.24,0.00023287,2]
[377920965,1754613188283,-400.0,0.00023287,2]
[377920966,1754613188292,-607.0,0.00023287,2]
[377920967,1754613188302,-1492.79,0.00023287,2]
[377920968,1754613188312,-1345.75,0.00023287,2]
[377920969,1754613188322,-420.32,0.00023287,2]
[377920970,1754613188331,-1120.37,0.00023287,2]
[377920971,1754613188341,-489.48,0.00023287,2]
[377920972,1754613188351,-1434.86,0.00023287,2]
[377920973,1754613188361,-400.0,0.00023287,2]
[377920974,1754613188370,-1951.53,0.00023287,2]
[377920975,1754613188380,-2325.69,0.00023287,2]
[377920976,1754613188390,-917.26,0.00023287,2]
[377920977,1754613188399,-1065.9,0.00023287,2]
[377920978,1754613188409,-1376.02,0.00023287,2]
[377920979,1754613188420,-1151.09,0.00023287,2]
[377920980,1754613188430,-400.0,0.00023287,2]
[377920981,1754613188439,-1350.78,0.00023287,2]
[377920982,1754613188449,-1657.63,0.00023287,2]
[377920983,1754613188459,-1848.96,0.00023287,2]
[377920984,1754613188469,-451.49,0.00023287,2]
[377920985,1754613188478,-1409.09,0.00023287,2]
[377920986,1754613188487,-400.0,0.00023287,2]
[377920987,1754613188497,-400.0,0.00023287,2]
[377920988,1754613188507,-2074.91,0.00023287,2]
[377920989,1754613188516,-608.66,0.00023287,2]
[377920990,1754613188526,-1826.78,0.00023287,2]
[377920991,1754613188535,-400.0,0.00023287,2]
[377920992,1754613188545,-2222.15,0.00023287,2]
[377920993,1754613188554,-1400.02,0.00023287,2]
[377920994,1754613188564,-1588.59,0.00023287,2]
[377920995,1754613188574,-400.0,0.00023287,2]
[377920996,1754613188583,-1119.1,0.00023287,2]
[377920997,1754613188593,-880.06,0.00023287,2]
[377920998,1754613188603,-1481.84,0.00023287,2]
[377920999,1754613188612,-1688.74,0.00023287,2]
[377921000,1754613188622,-2547.87,0.00023287,2]
[377921001,1754613188633,-1888.11,0.00023287,2]
[377921002,1754613188643,-1345.58,0.00023287,2]
[377921003,1754613188652,-1803.23,0.00023287,2]
[377921004,1754613188662,-3068.61,0.00023287,2]
[377921005,1754613188671,-846.92,0.00023287,2]
[377921006,1754613188681,-3553.23,0.00023287,2]
[377921007,1754613188691,-1278.15,0.00023287,2]
[377921008,1754613188700,-2016.9,0.00023287,2]
[377921009,1754613188710,-2027.95,0.00023287,2]
[377921010,1754613188719,-1857.98,0.00023287,2]
[377921011,1754613188728,-1218.73,0.00023287,2]
[377921012,1754613188738,-2106.04,0.00023287,2]
[377921013,1754613188748,-1934.76,0.00023287,2]
[377921014,1754613188758,-633.24,0.00023287,2]
[377921015,1754613188767,-1410.86,0.00023287,2]
[377921016,1754613188777,-881.02,0.00023287,2]
[377921017,1754613188787,-1461.11,0.00023287,2]
[377921018,1754613188796,-2341.65,0.00023287,2]
[377921019,1754613188805,-400.0,0.00023287,2]
[377921020,1754613188815,-1720.55,0.00023287,2]
[377921021,1754613188825,-400.0,0.00023287,2]
[377921022,1754613188835,-1452.03,0.00023287,2]
[377921023,1754613188845,-1620.97,0.00023287,2]
[377921024,1754613188855,-496.68,0.00023287,2]
[377921025,1754613188865,-634.15,0.00023287,2]
[377921026,1754613188877,-2144.18,0.00023287,2]
[377921027,1754613188887,-1617.17,0.00023287,2]
[377921028,1754613188897,-558.88,0.00023287,2]
[377921029,1754613188907,-2107.78,0.00023287,2]
[377921030,1754613188918,-400.0,0.00023287,2]
[377921031,1754613188927,-2615.62,0.00023287,2]
[377921032,1754613188937,-749.36,0.00023287,2]
[377921033,1754613188949,-1657.01,0.00023287,2]
[377921034,1754613188958,-1646.42,0.00023287,2]
[377921035,1754613188968,-1193.46,0.00023287,2]
[377921036,1754613188977,-2388.63,0.00023287,2]
[377921037,1754613188987,-400.0,0.00023287,2]
[377921038,1754613188997,-1288.88,0.00023287,2]
[377921039,1754613189007,-2311.16,0.00023287,2]
[377921040,1754613189017,-2350.74,0.00023287,2]
[377921041,1754613189027,-1822.62,0.00023287,2]
[377921042,1754613189037,-612.27,0.00023287,2]
[377921043,1754613189046,-1810.11,0.00023287,2]
[377921044,1754613189056,-1537.46,0.00023287,2]
[377921045,1754613189065,-1369.16,0.00023287,2]
[377921046,1754613189075,-2136.59,0.00023287,2]
[377921047,1754613189084,-511.54,0.00023287,2]
[377921048,1754613189094,-482.95,0.00023287,2]
[377921049,1754613189103,-1248.2,0.00023287,2]
[377921050,1754613189112,-400.0,0.00023287,2]
[377921051,1754613189122,-1594.51,0.00023287,2]
[377921052,1754613189131,-483.64,0.00023287,2]
[377921053,1754613189140,-1205.01,0.00023287,2]
[377921054,1754613189150,-1678.28,0.00023287,2]
[377921055,1754613189159,-893.25,0.00023287,2]
[377921056,1754613189169,-5670.63,0.00023287,2]
[377921057,1754613189179,-845.84,0.00023287,2]
[377921058,1754613189188,-1256.8,0.00023287,2]
[377921059,1754613189198,-663.05,0.00023287,2]
[377921060,1754613189207,-2578.27,0.00023287,2]
[377921061,1754613189217,-1440.32,0.00023287,2]
[377921062,1754613189227,-738.95,0.00023287,2]
[377921063,1754613189236,-575.03,0.00023287,2]
[377921064,1754613189245,-2047.45,0.00023287,2]
[377921065,1754613189254,-2097.6,0.00023287,2]
[377921066,1754613189263,-500.07,0.00023287,2]
[377921067,1754613189272,-1244.17,0.00023287,2]
[377921068,1754613189282,-422.96,0.00023287,2]
[377921069,1754613189291,-759.15,0.00023287,2]
[377921070,1754613189301,-1757.73,0.00023287,2]
[377921071,1754613189311,-1316.97,0.00023287,2]
[377921072,1754613189320,-1321.01,0.00023287,2]
[377921073,1754613189330,-454.26,0.00023287,2]
[377921074,1754613189339,-3377.08,0.00023287,2]
[377921075,1754613189349,-1895.55,0.00023287,2]
[377921076,1754613189358,-1208.59,0.00023287,2]
[377921077,1754613189367,-1065.6,0.00023287,2]
[377921078,1754613189377,-671.01,0.00023287,2]
[377921079,1754613189386,-1206.78,0.00023287,2]
[377921080,1754613189395,-2465.13,0.00023287,2]
[377921081,1754613189405,-930.4,0.00023287,2]
[377921082,1754613189415,-2359.49,0.00023287,2]
[377921083,1754613189424,-916.62,0.00023287,2]
[377921084,1754613189433,-1926.69,0.00023287,2]
[377921085,1754613189443,-1712.73,0.00023287,2]
[377921086,1754613189453,-831.18,0.00023287,2]
[377921087,1754613189462,-458.34,0.00023287,2]
[377921088,1754613189471,-1982.51,0.00023287,2]
[377921089,1754613189480,-1225.08,0.00023287,2]
[377921090,1754613189490,-2026.14,0.00023287,2]
[377921091,1754613189499,-1138.89,0.00023287,2]
[377921092,1754613189508,-1259.99,0.00023287,2]
[377921093,1754613189517,-785.6,0.00023287,2]
[377921094,1754613189527,-821.3,0.00023287,2]
[377921095,1754613189536,-1205.32,0.00023287,2]
[377921096,1754613189545,-1835.44,0.00023287,2]
[377921097,1754613189554,-517.59,0.00023287,2]
[377921098,1754613189563,-1444.0,0.00023287,2]
[377921099,1754613189573,-2627.0,0.00023287,2]
[377921100,1754613189582,-720.69,0.00023287,2]
[377921101,1754613189592,-1785.88,0.00023287,2]
[377921102,1754613189601,-1057.29,0.00023287,2]
[377921103,1754613189610,-594.32,0.00023287,2]
[377921104,1754613189619,-782.04,0.00023287,2]
[377921105,1754613189629,-737.52,0.00023287,2]
[377921106,1754613189638,-760.17,0.00023287,2]
[377921107,1754613189648,-1256.19,0.00023287,2]
[377921108,1754613189657,-1213.52,0.00023287,2]
[377921109,1754613189668,-1326.52,0.00023287,2]
[377921110,1754613189677,-180.41975145,0.00023287,2]
[377921111,1754613189686,-2043.3,0.00023287,2]
[377921112,1754613189695,-400.0,0.00023287,2]
[377921113,1754613189705,-2287.32,0.00023287,2]
[377921114,1754613189714,-1429.55,0.00023287,2]
[377921115,1754613189723,-1328.2,0.00023287,2]
[377921116,1754613189733,-718.93,0.00023287,2]
[377921117,1754613189742,-1087.69,0.00023287,2]
[377921118,1754613189752,-2952.54,0.00023287,2]
[377921119,1754613189761,-400.0,0.00023287,2]
[377921120,1754613189771,-1573.48,0.00023287,2]
[377921121,1754613189781,-1291.71,0.00023287,2]
[377921122,1754613189791,-507.81,0.00023287,2]
[377921123,1754613189801,-1998.91,0.00023287,2]
[377921124,1754613189811,-2109.97,0.00023287,2]
[377921125,1754613189820,-1129.91,0.00023287,2]
[377921126,1754613189829,-1425.93,0.00023287,2]
[377921127,1754613189839,-921.79,0.00023287,2]
[377921128,1754613189848,-662.71,0.00023287,2]
[377921129,1754613189858,-1164.62,0.00023287,2]
[377921130,1754613189868,-2405.69,0.00023287,2]
[377921131,1754613189879,-620.84,0.00023287,2]
[377921132,1754613189889,-780.96,0.00023287,2]
[377921133,1754613189899,-1165.14,0.00023287,2]
[377921134,1754613189911,-918.26,0.00023287,2]
[377921135,1754613189922,-2947.95,0.00023287,2]
[377921136,1754613189932,-1258.15,0.00023287,2]
[377921137,1754613189941,-876.19,0.00023287,2]
[377921138,1754613189951,-478.79,0.00023287,2]
[377921139,1754613189961,-1553.23,0.00023287,2]
[377921140,1754613189971,-599.75,0.00023287,2]
[377921141,1754613189981,-1217.16,0.00023287,2]
[377921142,1754613189991,-2199.42,0.00023287,2]
[377921143,1754613190001,-21934.36,0.00023287,2]
[377921144,1754613190010,-2212.98,0.00023287,2]
[377921145,1754613190019,-1718.94,0.00023287,2]
[377921146,1754613190029,-1128.21,0.00023287,2]
[377921147,1754613190038,-400.0,0.00023287,2]
[377921148,1754613190047,-454.14,0.00023287,2]
[377921149,1754613190057,-913.11,0.00023287,2]
[377921150,1754613190066,-2805.22,0.00023287,2]
[377921151,1754613190075,-484.16,0.00023287,2]
[377921152,1754613190084,-1717.22,0.00023287,2]
[377921153,1754613190093,-674.02,0.00023287,2]
[377921154,1754613190102,-400.0,0.00023287,2]
[377921155,1754613190111,-3589.91,0.00023287,2]
[377921156,1754613190120,-2525.21,0.00023287,2]
[377921157,1754613190130,-445.14,0.00023287,2]
[377921158,1754613190139,-1638.11,0.00023287,2]
[377921159,1754613190148,-1662.56,0.00023287,2]
[377921160,1754613190158,-820.59,0.00023287,2]
[377921161,1754613190168,-400.0,0.00023287,2]
[377921162,1754613190177,-1890.31,0.00023287,2]
[377921163,1754613190186,-600.51,0.00023287,2]
[377921164,1754613190196,-1179.5,0.00023287,2]
[377921165,1754613190205,-674.63,0.00023287,2]
[377921166,1754613190215,-2338.84,0.00023287,2]
[377921167,1754613190225,-2335.94,0.00023287,2]
[377921168,1754613190234,-1234.92,0.00023287,2]
[377921169,1754613190243,-1814.44,0.00023287,2]
[377921170,1754613190253,-5688.95,0.00023287,2]
[377921171,1754613190262,-862.72,0.00023287,2]
[377921172,1754613190272,-1880.9,0.00023287,2]
[377921173,1754613190281,-1651.16,0.00023287,2]
[377921174,1754613190291,-400.0,0.00023287,2]
[377921175,1754613190300,-480.51,0.00023287,2]
[377921176,1754613190310,-1525.3,0.00023287,2]
[377921177,1754613190320,-707.51,0.00023287,2]
[377921178,1754613190329,-374.0,0.00023288,7]
[377921179,1754613190338,-8145.36,0.00023368,2]
[377921180,1754613190348,-200.0,0.000235,2]
[377921181,1754613190357,-1770.72,0.00023548,2]
[377921182,1754613190366,-2033.74,0.00023548,2]
[377921183,1754613190375,-1928.95,0.00023548,2]
[377921184,1754613190385,-1964.46,0.00023548,2]
[377921185,1754613190394,-1517.59,0.00023548,2]
[377921186,1754613190404,-2517.35,0.00023548,2]
[377921187,1754613190414,-3417.84,0.00023548,2]
[377921188,1754613190423,-400.0,0.00023561,2]
[377921189,1754613190433,-413.9,0.00023561,2]
[377921190,1754613190442,-491.72,0.00023561,2]
[377921191,1754613190451,-1398.87,0.00023561,2]
[377921192,1754613190461,-1031.25,0.00023561,2]
[377921193,1754613190470,-984.93,0.00023561,2]
[377921194,1754613190480,-565.33,0.00023561,2]
[377921195,1754613190489,-1073.05,0.00023561,2]
[377921196,1754613190499,-1178.77,0.00023561,2]
[377921197,1754613190508,-828.34,0.00023561,2]
[377921198,1754613190517,-400.0,0.00023561,2]
[377921199,1754613190527,-400.0,0.00023561,2]
[377921200,1754613190536,-812.28,0.00023561,2]
[377921201,1754613190546,-927.28,0.00023561,2]
[377921202,1754613190555,-953.96,0.00023561,2]
[377921203,1754613190564,-861.71,0.00023561,2]
[377921204,1754613190574,-400.0,0.00023561,2]
[377921205,1754613190582,-802.6,0.00023561,2]
[377921206,1754613190592,-580.75,0.00023561,2]
[377921207,1754613190602,-400.0,0.00023561,2]
[377921208,1754613190611,-571.8,0.00023561,2]
[377921209,1754613190620,-400.0,0.00023561,2]
[377921210,1754613190631,-1017.49,0.00023561,2]
[377921211,1754613190640,-480.71,0.00023561,2]
[377921212,1754613190649,-403.89,0.00023561,2]
[377921213,1754613190659,-534.85335843,0.00023561,2]
[377921214,1754613190669,-400.0,0.00023561,2]
[377921215,1754613190678,-1379.73,0.00023561,2]
[377921216,1754613190687,-1290.36,0.00023561,2]
[377921217,1754613190696,-400.0,0.00023561,2]
[377921218,1754613190705,-560.12,0.00023561,2]
[377921219,1754613190714,-1326.45,0.00023561,2]
[377921220,1754613190723,-1037.58,0.00023561,2]
[377921221,1754613190732,-570.53,0.00023561,2]
[377921222,1754613190741,-551.88,0.00023561,2]
[377921223,1754613190750,-624.79,0.00023561,2]
[377921224,1754613190759,-459.48,0.00023561,2]
[377921225,1754613190768,-912.6,0.00023561,2]
[377921226,1754613190778,-453.86,0.00023561,2]
[377921227,1754613190787,-845.43,0.00023561,2]
[377921228,1754613190796,-610.33,0.00023561,2]
[377921229,1754613190805,-1543.29,0.00023561,2]
[377921230,1754613190815,-802.15,0.00023561,2]
[377921231,1754613190824,-405.06,0.00023561,2]
[377921232,1754613190834,-400.0,0.00023561,2]
[377921233,1754613190843,-1052.0,0.00023561,2]
[377921234,1754613190852,-400.0,0.00023561,2]
[377921235,1754613190862,-950.22,0.00023561,2]
[377921236,1754613190872,-903.46,0.00023561,2]
[377921237,1754613190884,-1188.56,0.00023561,2]
[377921238,1754613190893,-400.0,0.00023561,2]
[377921239,1754613190903,-1340.86,0.00023561,2]
[377921240,1754613190913,-511.85,0.00023561,2]
[377921241,1754613190923,-502.43,0.00023561,2]
[377921242,1754613190933,-538.68,0.00023561,2]
[377921243,1754613190943,-469.08,0.00023561,2]
[377921244,1754613190954,-431.81,0.00023561,2]
[377921245,1754613190963,-415.03,0.00023561,2]
[377921246,1754613190973,-400.0,0.00023561,2]
[377921247,1754613190982,-400.0,0.00023561,2]
[377921248,1754613190991,-652.84,0.00023561,2]
[377921249,1754613191001,-448.34,0.00023561,2]
[377921250,1754613191010,-613.1,0.00023561,2]
[377921251,1754613191020,-400.0,0.00023561,2]
[377921252,1754613191029,-468.72,0.00023561,2]
[377921253,1754613191039,-1054.59,0.00023561,2]
[377921254,1754613191049,-560.03,0.00023561,2]
[377921255,1754613191058,-400.0,0.00023561,2]
[377921256,1754613191067,-606.31,0.00023561,2]
[377921257,1754613191076,-1129.63,0.00023561,2]
[377921258,1754613191085,-744.37,0.00023561,2]
[377921259,1754613191094,-771.07,0.00023561,2]
[377921260,1754613191105,-1372.41,0.00023561,2]
[377921261,1754613191114,-830.78,0.00023561,2]
[377921262,1754613191123,-1290.29,0.00023561,2]
[377921263,1754613191133,-463.32,0.00023561,2]
[377921264,1754613191143,-400.0,0.00023561,2]
[377921265,1754613191152,-643.55,0.00023561,2]
[377921266,1754613191162,-400.0,0.00023561,2]
[377921267,1754613191172,-400.0,0.00023561,2]
[377921268,1754613191181,-792.51,0.00023561,2]
[377921269,1754613191190,-720.13,0.00023561,2]
[377921270,1754613191200,-526.14,0.00023561,2]
[377921271,1754613191209,-690.34,0.00023561,2]
[377921272,1754613191219,-767.24,0.00023561,2]
[377921273,1754613191228,-784.03,0.00023561,2]
[377921274,1754613191238,-592.46,0.00023561,2]
[377921275,1754613191248,-838.34,0.00023561,2]
[377921276,1754613191257,-619.45,0.00023561,2]
[377921277,1754613191267,-400.0,0.00023561,2]
[377921278,1754613191276,-400.0,0.00023561,2]
[377921279,1754613191286,-430.58,0.00023561,2]
[377921280,1754613191295,-400.0,0.00023561,2]
[377921281,1754613191306,-400.0,0.00023561,2]
[377921282,1754613191315,-400.0,0.00023561,2]
[377921283,1754613191324,-887.56,0.00023561,2]
[377921284,1754613191334,-1086.27,0.00023561,2]
[377921285,1754613191344,-1398.35,0.00023561,2]
[377921286,1754613191353,-1137.31,0.00023561,2]
[377921287,1754613191362,-488.07,0.00023561,2]
[377921288,1754613191372,-400.0,0.00023561,2]
[377921289,1754613191381,-433.15,0.00023561,2]
[377921290,1754613191391,-711.54,0.00023561,2]
[377921291,1754613191401,-969.77,0.00023561,2]
[377921292,1754613191411,-644.96,0.00023561,2]
[377921293,1754613191422,-615.2,0.00023561,2]
[377921294,1754613191431,-1326.15,0.00023561,2]
[377921295,1754613191440,-580.71,0.00023561,2]
[377921296,1754613191450,-745.61,0.00023561,2]
[377921297,1754613191460,-777.93,0.00023561,2]
[377921298,1754613191469,-341.0676059,0.00023561,2]
[377921299,1754613191479,-533.67,0.00023561,2]
[377921300,1754613191490,-1764.53,0.00023561,2]
[377921301,1754613191501,-1146.04,0.00023561,2]
[377921302,1754613191511,-400.0,0.00023561,2]
[377921303,1754613191520,-678.35,0.00023561,2]
[377921304,1754613191530,-400.0,0.00023561,2]
[377921305,1754613191540,-595.92,0.00023561,2]
[377921306,1754613191550,-400.0,0.00023561,2]
[377921307,1754613191562,-1128.98,0.00023561,2]
[377921308,1754613191572,-1058.02,0.00023561,2]
[377921309,1754613191582,-467.91,0.00023561,2]
[377921310,1754613191591,-498.62,0.00023561,2]
[377921311,1754613191601,-460.25,0.00023561,2]
[377921312,1754613191612,-684.85,0.00023561,2]
[377921313,1754613191621,-1822.08,0.00023561,2]
[377921314,1754613191633,-519.11,0.00023561,2]
[377921315,1754613191645,-834.5,0.00023561,2]
[377921316,1754613191654,-400.0,0.00023561,2]
[377921317,1754613191663,-400.0,0.00023561,2]
[377921318,1754613191673,-497.18199472,0.00023561,2]
[377921319,1754613191683,-431.49,0.00023561,2]
[377921320,1754613191694,-400.0,0.00023561,2]
[377921321,1754613191704,-756.51,0.00023561,2]
[377921322,1754613191715,-753.02,0.00023561,2]
[377921323,1754613191725,-400.0,0.00023561,2]
[377921324,1754613191736,-474.3,0.00023561,2]
[377921325,1754613191746,-400.0,0.00023561,2]
[377921326,1754613191758,-1312.14,0.00023561,2]
[377921327,1754613191768,-530.37,0.00023561,2]
[377921328,1754613191777,-488.75,0.00023561,2]
[377921329,1754613191788,-723.03,0.00023561,2]
[377921330,1754613191799,-664.1,0.00023561,2]
[377921331,1754613191808,-753.14,0.00023561,2]
[377921332,1754613191819,-400.0,0.00023561,2]
[377921333,1754613191829,-481.93,0.00023561,2]
[377921334,1754613191839,-681.29,0.00023561,2]
[377921335,1754613191848,-1362.2,0.00023561,2]
[377921336,1754613191857,-400.0,0.00023561,2]
[377921337,1754613191867,-1202.92,0.00023561,2]
[377921338,1754613191879,-482.31887827,0.00023561,2]
[377921339,1754613191889,-908.09,0.00023561,2]
[377921340,1754613191898,-400.0,0.00023561,2]
[377921341,1754613191907,-1356.82,0.00023561,2]
[377921342,1754613191918,-642.93,0.00023561,2]
[377921343,1754613191927,-558.14,0.00023561,2]
[377921344,1754613191937,-857.38,0.00023561,2]
[377921345,1754613191947,-600.87,0.00023561,2]
[377921346,1754613191957,-1113.28,0.00023561,2]
[377921347,1754613191967,-1063.89,0.00023561,2]
[377921348,1754613191976,-473.3,0.00023561,2]
[377921349,1754613191985,-766.74,0.00023561,2]
[377921350,1754613191996,-400.0,0.00023561,2]
[377921351,1754613192006,-702.23,0.00023561,2]
[377921352,1754613192017,-400.0,0.00023561,2]
[377921353,1754613192026,-697.81,0.00023561,2]
[377921354,1754613192036,-593.88,0.00023561,2]
[377921355,1754613192045,-835.59,0.00023561,2]
[377921356,1754613192055,-787.56,0.00023561,2]
[377921357,1754613192065,-1070.57,0.00023561,2]
[377921358,1754613192075,-714.37,0.00023561,2]
[377921359,1754613192085,-565.06,0.00023561,2]
[377921360,1754613192095,-805.74,0.00023561,2]
[377921361,1754613192105,-1013.85,0.00023561,2]
[377921362,1754613192114,-446.94,0.00023561,2]
[377921363,1754613192124,-533.35205114,0.00023561,2]
[377921364,1754613192133,-518.84,0.00023561,2]
[377921365,1754613192143,-634.1,0.00023561,2]
[377921366,1754613192154,-668.96,0.00023561,2]
[377921367,1754613192166,-997.03,0.00023561,2]
[377921368,1754613192175,-1310.15,0.00023561,2]
[377921369,1754613192185,-539.85,0.00023561,2]
[377921370,1754613192195,-823.13,0.00023561,2]
[377921371,1754613192205,-542.82,0.00023561,2]
[377921372,1754613192216,-602.12,0.00023561,2]
[377921373,1754613192226,-410.63411999,0.00023561,2]
[377921374,1754613192236,-1520.38,0.00023561,2]
[377921375,1754613192246,-1166.4,0.00023561,2]
[377921376,1754613192256,-440.74,0.00023561,2]
[377921377,1754613192268,-400.0,0.00023561,2]
[377921378,1754613192277,-400.0,0.00023561,2]
[377921379,1754613192287,-400.0,0.00023561,2]
[377921380,1754613192297,-677.81,0.00023561,2]
[377921381,1754613192308,-1322.15,0.00023561,2]
[377921382,1754613192319,-400.0,0.00023561,2]
[377921383,1754613192328,-439.53,0.00023561,2]
[377921384,1754613192456,-400.0,0.00023561,2]
[377921385,1754613192466,-729.31,0.00023561,2]
[377921386,1754613192477,-455.12,0.00023561,2]
[377921387,1754613192487,-1225.17,0.00023561,2]
[377921388,1754613192496,-400.0,0.00023561,2]
[377921389,1754613192506,-1460.14,0.00023561,2]
[377921390,1754613192515,-400.0,0.00023561,2]
[377921391,1754613192524,-535.87,0.00023561,2]
[377921392,1754613192534,-400.0,0.00023561,2]
[377921393,1754613192544,-965.56,0.00023561,2]
[377921394,1754613192554,-400.0,0.00023561,2]
[377921395,1754613192563,-400.0,0.00023561,2]
[377921396,1754613192573,-473.14,0.00023561,2]
[377921397,1754613192583,-1112.82,0.00023561,2]
[377921398,1754613192593,-400.0,0.00023561,2]
[377921399,1754613192603,-592.4,0.00023561,2]
[377921400,1754613192613,-1239.98,0.00023561,2]
[377921401,1754613192623,-546.56,0.00023561,2]
[377921402,1754613192634,-412.93,0.00023561,2]
[377921403,1754613192644,-400.0,0.00023561,2]
[377921404,1754613192654,-1332.23,0.00023561,2]
[377921405,1754613192664,-1121.49,0.00023561,2]
[377921406,1754613192673,-1921.83,0.00023561,2]
[377921407,1754613192683,-477.33,0.00023561,2]
[377921408,1754613192692,-2373.45,0.00023561,2]
[377921409,1754613192702,-867.66,0.00023561,2]
[377921410,1754613192712,-400.0,0.00023561,2]
[377921411,1754613192722,-434.62,0.00023561,2]
[377921412,1754613192731,-586.09,0.00023561,2]
[377921413,1754613192741,-633.66,0.00023561,2]